bitfinex/quotes_ETHUSD_20250827
["timestamp","ask_amount","ask_price","bid_price","bid_amount"]
[1756291683988,2.25991964,4588.0,4587.9,0.2868]
[1756291684208,0.08032069,4588.0,4587.9,0.2868]
[1756291684912,0.08032069,4588.0,4587.9,0.7443]
[1756291685119,0.08032069,4588.0,4587.9,1.03670834]
[1756291685392,6.97291,4588.3,4587.9,0.7443]
[1756291685697,9.15237541,4588.3,4588.0,0.4575]
[1756291685898,9.15237541,4588.3,4588.2,0.2868]
[1756291686198,2.17952105,4588.2,4587.8,0.4575]
[1756291686404,2.17952105,4588.2,4587.9,0.4575]
[1756291686405,2.28832105,4588.2,4587.9,0.4575]
[1756291686587,2.28832105,4588.2,4588.1,0.2868]
[1756291687187,0.1088,4588.2,4588.1,0.2868]
[1756291687375,0.1088,4588.2,4588.1,0.7443]
[1756291688461,6.97291,4588.3,4588.1,0.7443]
[1756291688661,6.97291,4588.3,4588.2,0.4575]
[1756291688878,6.97291,4588.3,4588.2,0.7443]
[1756291689790,0.002,4588.4,4588.3,2.17945644]
[1756291690071,0.002,4588.4,4588.3,2.94021208]
[1756291690284,0.002,4588.4,4588.3,3.22701208]
[1756291690609,0.002,4588.4,4588.3,1.04755564]
[1756291690767,0.002,4588.4,4588.3,2.92375644]
[1756291694112,0.002,4588.4,4588.3,2.945551]
[1756291694424,0.002,4588.4,4588.3,2.92375644]
[1756291694585,0.002,4588.4,4588.3,2.945551]
[1756291695086,0.002,4588.4,4588.3,6.666551]
[1756291695284,0.002,4588.4,4588.3,6.64475644]
[1756291695682,0.002,4588.4,4588.3,7.70566713]
[1756291695882,0.002,4588.4,4588.3,10.70566713]
[1756291696083,0.002,4588.4,4588.3,11.36566713]
[1756291697584,0.0012,4588.4,4588.3,11.36566713]
[1756291700250,1e-08,4588.5,4588.4,5.83940894]
[1756291700538,1e-08,4588.5,4588.4,8.06788569]
[1756291700750,1e-08,4588.5,4588.4,4.71758569]
[1756291701036,1e-08,4588.5,4588.4,9.67790894]
[1756291702927,1e-08,4588.5,4588.4,5.95790894]
[1756291703143,1e-08,4588.5,4588.4,9.67690894]
[1756291705720,1e-08,4588.5,4588.4,9.67590894]
[1756291706239,1e-08,4588.5,4588.4,10.33590894]
[1756291706448,1e-08,4588.5,4588.4,11.76592749]
[1756291706626,1e-08,4588.5,4588.4,8.04792749]
[1756291707030,1e-08,4588.5,4588.4,11.76592749]
[1756291709445,1e-08,4588.5,4588.4,10.32642749]
[1756291709632,1e-08,4588.5,4588.4,10.63612749]
[1756291709838,1e-08,4588.5,4588.4,11.10492749]
[1756291710515,1e-08,4588.5,4588.4,10.63612749]
[1756291711250,0.29670001,4588.5,4588.4,2.17940894]
[1756291711458,0.29670001,4588.5,4588.4,5.89640894]
[1756291712238,0.29670001,4588.5,4588.4,2.17940894]
[1756291712454,0.29670001,4588.5,4588.4,5.89640894]
[1756291713168,1e-08,4588.5,4588.4,6.44905211]
[1756291713550,1e-08,4588.5,4588.4,2.42235211]
[1756291713732,0.29670001,4588.5,4588.4,5.89640894]
[1756291716631,0.29670001,4588.5,4588.4,2.17940894]
[1756291716879,0.29670001,4588.5,4588.4,5.89540894]
[1756291717978,0.72420001,4588.5,4588.4,5.89540894]
[1756291719049,0.29670001,4588.5,4588.4,5.89540894]
[1756291719467,0.72420001,4588.5,4588.4,3.716]
[1756291719668,0.29670001,4588.5,4588.4,3.716]
[1756291719986,1e-08,4588.5,4588.4,7.22398894]
[1756291720139,1e-08,4588.5,4588.4,10.22398894]
[1756291720455,1e-08,4588.5,4588.4,10.99278894]
[1756291721648,1e-08,4588.5,4588.4,7.27678894]
[1756291721848,1e-08,4588.5,4588.4,10.99178894]
[1756291722072,0.02120001,4588.8,4588.7,2.17926645]
[1756291722380,0.02120001,4588.8,4588.7,10.13448453]
[1756291722574,0.02120001,4588.8,4588.7,11.02178453]
[1756291725284,0.02120001,4588.8,4588.7,10.55198453]
[1756291725573,0.02120001,4588.8,4588.7,6.52828453]
[1756291725574,0.31790001,4588.8,4588.7,6.52828453]
[1756291725777,0.02120001,4588.8,4588.7,10.24228453]
[1756291725950,0.02120001,4588.8,4588.7,10.55198453]
[1756291726388,0.02120001,4588.8,4588.7,11.02078453]
[1756291727085,0.02120001,4588.8,4588.7,10.55198453]
[1756291727256,0.31790001,4588.8,4588.7,7.24228453]
[1756291727461,0.31790001,4588.8,4588.7,0.1088]
[1756291727792,0.74540001,4588.8,4588.7,6.00206645]
[1756291727959,0.31790001,4588.8,4588.7,6.00206645]
[1756291728293,0.02120001,4588.8,4588.7,6.20296645]
[1756291728502,0.02120001,4588.8,4588.7,7.48990772]
[1756291728671,0.02120001,4588.8,4588.7,7.59870772]
[1756291728872,0.02120001,4588.8,4588.7,6.82020772]
[1756291729388,0.02120001,4588.8,4588.7,7.12990772]
[1756291729589,0.02120001,4588.8,4588.7,3.41590772]
[1756291729762,0.02120001,4588.8,4588.7,7.12890772]
[1756291730699,0.02120001,4588.8,4588.7,7.13490772]
[1756291731070,0.02120001,4588.8,4588.7,6.81920772]
[1756291731265,0.02120001,4588.8,4588.7,7.13490772]
[1756291731467,0.02120001,4588.8,4588.7,10.58830772]
[1756291732269,0.02120001,4588.8,4588.7,10.13490772]
[1756291732696,0.30250001,4588.8,4588.7,2.28806645]
[1756291732870,0.30250001,4588.8,4588.7,6.00106645]
[1756291735169,0.30250001,4588.8,4588.7,2.28806645]
[1756291735370,0.30250001,4588.8,4588.7,6.00106645]
[1756291737093,0.30250001,4588.8,4588.7,7.67706645]
[1756291737414,0.02120001,4588.8,4588.7,7.67706645]
[1756291737736,0.02120001,4588.8,4588.7,9.43180772]
[1756291737930,0.02120001,4588.8,4588.7,12.43180772]
[1756291738788,0.02120001,4588.8,4588.7,12.43080772]
[1756291740310,0.02120001,4588.8,4588.7,11.66170772]
[1756291740484,0.02120001,4588.8,4588.7,12.43080772]
[1756291741089,0.02120001,4588.8,4588.7,13.09080772]
[1756291743444,0.02120001,4588.8,4588.7,9.37880772]
[1756291743611,0.02120001,4588.8,4588.7,13.08980772]
[1756291743807,0.30250001,4588.8,4588.7,7.94970772]
[1756291744019,0.30250001,4588.8,4588.7,10.67506645]
[1756291745236,0.30250001,4588.8,4588.7,6.96406645]
[1756291745426,0.30250001,4588.8,4588.7,10.67506645]
[1756291745976,0.30250001,4588.8,4588.7,6.96406645]
[1756291746111,0.30250001,4588.8,4588.7,10.67406645]
[1756291746655,0.02040001,4588.8,4588.7,10.67406645]
[1756291746826,0.02040001,4588.8,4588.7,12.27520772]
[1756291747222,0.30350001,4588.8,4588.7,7.67406645]
[1756291747444,0.30350001,4588.8,4588.7,3.96406645]
[1756291747754,0.76260001,4588.8,4588.7,7.67406645]
[1756291747940,0.30350001,4588.8,4588.7,7.67406645]
[1756291750126,0.76260001,4588.8,4588.7,7.67406645]
[1756291750634,0.02040001,4588.8,4588.7,7.67406645]
[1756291750946,0.30170001,4588.8,4588.7,7.67406645]
[1756291751539,0.76260001,4588.8,4588.7,7.67406645]
[1756291751934,0.30170001,4588.8,4588.7,7.67406645]
[1756291752346,0.30170001,4588.8,4588.7,7.67306645]
[1756291753915,0.76260001,4588.8,4588.7,7.67306645]
[1756291754130,0.30170001,4588.8,4588.7,7.67306645]
[1756291754351,0.02040001,4588.8,4588.7,7.67306645]
[1756291754554,0.02040001,4588.8,4588.7,9.42750772]
[1756291754772,0.02040001,4588.8,4588.7,13.08750772]
[1756291758759,1e-08,4588.8,4588.7,13.08750772]
[1756291758924,1e-08,4588.9,4588.8,5.83921896]
[1756291759125,1e-08,4588.9,4588.8,8.54426266]
[1756291759336,1e-08,4588.9,4588.8,8.85996266]
[1756291760155,1e-08,4588.9,4588.8,12.56796266]
[1756291760462,1e-08,4588.9,4588.8,8.40656266]
[1756291760857,1e-08,4588.9,4588.8,12.11456266]
[1756291761038,1e-08,4588.9,4588.8,8.40656266]
[1756291761238,1e-08,4588.9,4588.8,12.55656266]
[1756291763140,1e-08,4588.9,4588.8,12.11356266]
[1756291763342,1e-08,4588.9,4588.8,11.79786266]
[1756291763863,1e-08,4588.9,4588.8,11.13786266]
[1756291764080,1e-08,4588.9,4588.8,11.44806266]
[1756291764433,1e-08,4588.9,4588.8,11.89006266]
[1756291767807,1e-08,4588.9,4588.8,11.44806266]
[1756291768097,1e-08,4588.9,4588.8,11.89006266]
[1756291768261,1e-08,4588.9,4588.8,12.55006266]
[1756291769170,1e-08,4588.9,4588.8,12.53006266]
[1756291771098,0.00120001,4589.0,4588.9,2.83917147]
[1756291771266,1e-08,4589.0,4588.9,5.01846659]
[1756291771473,1e-08,4589.0,4588.9,5.28687488]
[1756291771892,1e-08,4589.0,4588.9,8.28687488]
[1756291773177,1e-08,4589.0,4588.9,11.99187488]
[1756291776628,1e-08,4589.0,4588.9,8.28687488]
[1756291776929,1e-08,4589.0,4588.9,11.99087488]
[1756291778124,1e-08,4589.0,4588.9,8.28687488]
[1756291778328,1e-08,4589.0,4588.9,11.99087488]
[1756291786340,1e-08,4589.0,4588.9,11.25767488]
[1756291786711,1e-08,4589.0,4588.9,11.98987488]
[1756291789634,1e-08,4589.0,4588.9,11.54687488]
[1756291790301,0.28000001,4589.0,4588.9,11.25667488]
[1756291790733,0.28000001,4589.0,4588.9,11.41654488]
[1756291791439,1e-08,4589.0,4588.9,11.41654488]
[1756291791854,0.74240001,4589.0,4588.9,2.17917147]
[1756291792208,0.74240001,4589.0,4588.9,5.88017147]
[1756291792741,0.74240001,4589.0,4588.9,3.701]
[1756291793141,0.74240001,4589.0,4588.9,5.88017147]
[1756291793610,0.74240001,4589.0,4588.9,2.17917147]
[1756291793813,0.74240001,4589.0,4588.8,0.001]
[1756291794053,0.74240001,4589.0,4588.9,2.17917147]
[1756291794380,0.74240001,4589.0,4588.9,5.88017147]
[1756291795450,0.29630001,4589.0,4588.9,5.88017147]
[1756291795619,0.74160001,4589.0,4588.9,5.88017147]
[1756291796360,0.74160001,4589.0,4588.9,2.17917147]
[1756291796564,0.74160001,4589.0,4588.9,5.88017147]
[1756291796960,0.29630001,4589.0,4588.9,5.88017147]
[1756291797468,0.002,4589.3,4589.2,2.17902902]
[1756291797765,0.7428,4589.3,4589.2,5.88002902]
[1756291798750,0.7428,4589.3,4589.2,2.17902902]
[1756291798952,0.7428,4589.3,4589.2,5.88002902]
[1756291799967,0.3,4589.3,4589.2,5.88002902]
[1756291800172,0.3,4589.3,4589.2,2.17902902]
[1756291800359,0.7428,4589.3,4589.2,5.87902902]
[1756291800869,0.7428,4589.3,4589.2,2.17902902]
[1756291801062,0.7428,4589.3,4589.2,5.87902902]
[1756291801883,0.7428,4589.3,4589.2,5.98782902]
[1756291803571,0.3,4589.3,4589.2,5.98782902]
[1756291803749,0.002,4589.3,4589.2,7.56392164]
[1756291803951,0.002,4589.3,4589.2,11.22392164]
[1756291807457,0.042,4589.8,4589.7,5.83879164]
[1756291807458,1e-08,4589.8,4589.7,5.83879164]
[1756291807665,1e-08,4589.8,4589.7,11.21379164]
[1756291807866,1e-08,4589.8,4589.7,13.9449568]
[1756291810654,0.02,4590.8,4589.7,13.9449568]
[1756291810655,0.02,4590.8,4590.7,5.83831703]
[1756291810851,0.02,4590.8,4590.7,11.21131703]
[1756291811084,0.02,4590.8,4590.7,12.65908732]
[1756291811280,0.3155,4590.8,4590.7,11.99908732]
[1756291812092,0.3155,4590.8,4590.7,8.30108732]
[1756291812297,0.3155,4590.8,4590.7,10.66011703]
[1756291813605,0.3155,4590.8,4590.7,6.96211703]
[1756291813809,0.3155,4590.8,4590.7,10.65911703]
[1756291814410,0.7608,4590.8,4590.7,1.7838]
[1756291814573,7.00219352,4590.8,4590.7,3.697]
[1756291815381,7.00219352,4590.8,4590.0,1.675]
[1756291815575,6.24139352,4590.1,4590.0,1.675]
[1756291815777,6.98219352,4590.1,4590.0,1.675]
[1756291815985,6.98219352,4590.1,4590.0,5.372]
[1756291816384,0.7408,4590.1,4590.0,5.372]
[1756291818515,0.7408,4590.1,4590.0,5.371]
[1756291819636,2.91940177,4590.1,4589.8,0.02]
[1756291819942,3.02740177,4590.1,4589.9,3.557]
[1756291820148,2.62244923,4590.0,4589.9,3.557]
[1756291820346,2.91934923,4590.0,4589.9,3.557]
[1756291820638,2.91934923,4590.0,4589.9,3.696]
[1756291820817,0.7407,4590.0,4589.9,3.696]
[1756291821341,0.7407,4590.0,4589.8,0.02]
[1756291821538,0.2969,4590.0,4589.9,3.696]
[1756291822135,0.7392,4590.0,4589.9,3.696]
[1756291823340,0.7392,4590.0,4589.6,0.1088]
[1756291823643,0.4423,4589.9,4589.7,3.696]
[1756291823840,0.7392,4589.8,4589.7,3.696]
[1756291824045,0.2983,4589.8,4589.6,0.1088]
[1756291824262,0.2983,4589.8,4589.7,3.696]
[1756291825239,0.7392,4589.8,4589.4,0.1088]
[1756291825428,0.4409,4589.7,4589.5,3.696]
[1756291825629,0.7393,4589.6,4589.4,0.1088]
[1756291825859,0.7393,4589.6,4589.5,3.695]
[1756291827235,0.7393,4589.6,4589.3,1.675]
[1756291827429,0.2998,4589.6,4589.4,3.695]
[1756291827764,0.2998,4589.6,4589.5,3.695]
[1756291828333,0.2998,4589.6,4589.4,0.001]
[1756291828666,0.2998,4589.6,4589.5,3.695]
[1756291829037,0.2998,4589.6,4589.4,0.001]
[1756291829238,0.7393,4589.6,4589.5,3.695]
[1756291829956,0.2998,4589.6,4589.5,3.695]
[1756291832971,0.1088,4589.7,4589.5,3.9886]
[1756291833175,6.24139352,4590.1,4589.5,4.4191]
[1756291833336,0.1088,4590.0,4589.5,4.4191]
[1756291833935,0.1088,4590.0,4589.5,3.9886]
[1756291834136,0.1088,4590.0,4589.6,0.4305]
[1756291834336,0.1088,4590.0,4589.7,3.695]
[1756291834766,0.1088,4590.0,4589.7,2.1787852]
[1756291834973,0.1088,4590.0,4589.8,3.695]
[1756291835869,0.2752,4589.9,4589.5,2.17887789]
[1756291836067,0.2752,4589.9,4589.6,3.694]
[1756291836275,6.97291,4589.8,4589.6,3.694]
[1756291836439,6.97291,4589.8,4589.7,0.7241]
[1756291836982,6.97291,4589.8,4589.7,0.2936]
[1756291837577,6.97291,4589.8,4589.7,3.9876]
[1756291838077,6.97291,4589.8,4589.7,4.4181]
[1756291838281,6.97291,4589.8,4589.7,3.9876]
[1756291838574,6.97291,4589.8,4589.7,6.59689164]
[1756291838745,6.97291,4589.8,4589.7,3.9876]
[1756291839655,6.97291,4589.8,4589.7,6.59689164]
[1756291840880,6.97291,4589.8,4589.7,7.55566585]
[1756291841466,7.28131,4589.8,4589.7,3.8018]
[1756291841665,7.28131,4589.8,4589.7,0.1088]
[1756291841872,7.28131,4589.8,4589.7,3.8018]
[1756291842190,6.97291,4589.8,4589.7,3.8018]
[1756291842657,6.97291,4589.8,4589.7,5.98059164]
[1756291843494,6.97291,4589.8,4589.7,6.27419164]
[1756291843797,6.97291,4589.8,4589.7,3.8018]
[1756291844357,7.24731,4589.8,4589.7,0.1088]
[1756291844563,7.24731,4589.8,4589.7,3.693]
[1756291845860,7.24731,4589.8,4589.5,0.1088]
[1756291846083,6.97211,4589.8,4589.7,5.87179164]
[1756291846672,6.97211,4589.8,4589.7,6.16539164]
[1756291846985,6.97211,4589.8,4589.7,6.59589164]
[1756291848293,6.97211,4589.8,4589.7,10.48444817]
[1756291848499,0.002,4590.1,4590.0,2.17864923]
[1756291848700,0.002,4590.1,4590.0,8.87064923]
[1756291848862,0.002,4590.1,4590.0,9.70354923]
[1756291849062,0.002,4590.1,4590.0,7.28863143]
[1756291849366,0.002,4590.1,4590.0,10.98063143]
[1756291851197,0.002,4590.1,4590.0,3.56453143]
[1756291851397,0.3055,4590.1,4590.0,5.97944923]
[1756291852270,0.002,4590.1,4590.0,6.27054923]
[1756291852662,0.002,4590.1,4590.0,6.71674923]
[1756291853794,0.002,4590.1,4590.0,9.71674923]
[1756291853997,0.002,4590.1,4590.0,10.90629838]
[1756291856431,0.002,4590.1,4590.0,7.21429838]
[1756291856568,0.002,4590.1,4590.0,10.90529838]
[1756291857592,0.002,4590.1,4590.0,10.90429838]
[1756291866025,0.02,4593.8,4590.1,7.27030407]
[1756291866269,0.4371,4593.5,4592.2,3.66]
[1756291866466,0.4371,4593.5,4592.3,6.01376529]
[1756291866758,0.4371,4593.4,4592.3,1.675]
[1756291866974,6.22658867,4593.2,4592.5,2.17742838]
[1756291867125,0.3035,4592.6,4592.3,1.675]
[1756291867328,0.3035,4592.6,4592.3,3.85254751]
[1756291867329,0.4371,4592.5,4592.3,3.85254751]
[1756291867560,0.7406,4592.4,4592.3,3.85254751]
[1756291868080,0.7406,4592.4,4592.3,7.65034751]
[1756291868458,0.7406,4592.4,4592.3,3.96134751]
[1756291868976,0.7398,4592.4,4592.3,5.4728]
[1756291869273,0.7398,4592.4,4592.3,1.7838]
[1756291869738,0.7398,4592.4,4592.3,5.4718]
[1756291870432,0.7398,4592.4,4592.3,1.7838]
[1756291870635,0.7398,4592.4,4592.3,5.4718]
[1756291873074,0.7398,4592.4,4592.3,1.7838]
[1756291873387,0.7398,4592.4,4592.3,5.4718]
[1756291874045,0.3027,4592.4,4592.3,1.7838]
[1756291874250,0.7398,4592.4,4592.3,5.363]
[1756291875269,0.3027,4592.4,4592.3,5.363]
[1756291875441,0.7398,4592.4,4592.3,5.363]
[1756291875642,0.7398,4592.4,4592.3,1.675]
[1756291875841,0.7398,4592.4,4592.3,5.363]
[1756291876356,3.7398,4592.4,4591.8,0.02]
[1756291876551,0.1088,4591.9,4591.8,0.02]
[1756291876949,0.4123,4591.9,4591.8,3.553]
[1756291877161,3.02624777,4591.9,4591.8,3.553]
[1756291878286,3.02624777,4591.9,4591.8,0.02]
[1756291878444,2.17784902,4591.7,4591.5,1.675]
[1756291878649,6.22658867,4592.0,4591.5,1.675]
[1756291878650,0.3035,4591.6,4591.5,1.675]
[1756291878838,0.3035,4591.6,4591.5,5.363]
[1756291879374,0.4123,4591.6,4591.5,5.363]
[1756291880449,0.4123,4591.6,4591.4,3.688]
[1756291880450,0.8485,4591.6,4591.4,3.688]
[1756291880636,0.4362,4591.5,4591.4,3.688]
[1756291880837,0.3964,4591.5,4591.4,3.688]
[1756291881871,0.3964,4591.5,4590.8,0.1288]
[1756291882175,0.1088,4591.2,4590.9,3.688]
[1756291882344,0.2876,4591.0,4590.9,3.688]
[1756291883780,7.25971,4591.0,4590.9,3.688]
[1756291886577,7.25971,4591.0,4590.8,0.02]
[1756291886791,7.25971,4591.0,4590.9,3.688]
[1756291887096,6.97211,4591.0,4590.9,6.60832213]
[1756291887860,6.97211,4591.0,4590.9,4.4301]
[1756291888193,6.97211,4591.0,4590.9,3.987]
[1756291888368,6.97211,4591.0,4590.9,3.688]
[1756291888993,7.25771,4591.0,4590.9,3.688]
[1756291889773,6.97211,4591.0,4590.9,5.86622213]
[1756291889974,6.97211,4591.0,4590.9,3.987]
[1756291890294,6.97211,4591.0,4590.9,3.688]
[1756291890483,7.25771,4591.0,4590.9,3.688]
[1756291891286,6.97211,4591.0,4590.9,3.688]
[1756291893278,6.97131,4591.0,4590.9,3.688]
[1756291896770,6.97131,4591.0,4590.9,3.987]
[1756291896975,6.97131,4591.0,4590.9,7.50315353]
[1756291897298,6.97131,4591.0,4590.9,7.39435353]
[1756291898019,6.97131,4591.0,4590.9,7.50315353]
[1756291898372,6.97131,4591.0,4590.9,10.50315353]
[1756291900923,0.002,4591.6,4591.5,2.17793749]
[1756291901121,0.002,4591.6,4591.5,5.86493749]
[1756291901421,0.002,4591.6,4591.5,6.71583749]
[1756291901723,0.002,4591.6,4591.5,3.02883749]
[1756291901894,0.002,4591.6,4591.5,6.71583749]
[1756291902088,0.002,4591.6,4591.5,3.91822177]
[1756291902415,0.002,4591.6,4591.5,7.60522177]
[1756291911738,0.002,4591.6,4591.5,3.47512177]
[1756291911946,0.002,4591.6,4591.5,7.59812177]
[1756291913217,0.002,4591.6,4591.5,3.91212177]
[1756291913545,0.002,4591.6,4591.5,7.59812177]
[1756291913754,0.002,4591.6,4591.5,6.91212177]
[1756291914043,0.002,4591.6,4591.5,10.68541477]
[1756291914213,0.002,4591.6,4591.5,6.99941477]
[1756291914414,0.002,4591.6,4591.5,6.86212177]
[1756291914746,0.002,4591.6,4591.5,5.97273749]
[1756291914966,0.002,4591.6,4591.5,2.28673749]
[1756291915118,0.2941,4591.6,4591.5,2.28673749]
[1756291915518,0.2941,4591.6,4591.5,5.97273749]
[1756291915825,0.002,4591.6,4591.5,5.97273749]
[1756291916030,0.3003,4591.6,4591.5,5.97273749]
[1756291917522,0.002,4591.6,4591.5,5.97273749]
[1756291917848,0.0012,4591.6,4591.5,5.97273749]
[1756291918046,0.301,4591.6,4591.5,5.97273749]
[1756291919029,7.27231,4591.6,4591.5,0.1088]
[1756291919233,7.71841,4591.6,4591.5,3.7948]
[1756291919624,7.27231,4591.6,4591.5,5.97273749]
[1756291920130,7.27231,4591.6,4591.5,5.97173749]
[1756291920759,7.27231,4591.6,4591.5,2.28673749]
[1756291920933,7.27231,4591.6,4591.5,5.97173749]
[1756291921532,7.27231,4591.6,4591.5,0.1088]
[1756291921732,7.71841,4591.6,4591.5,0.1088]
[1756291921935,9.89630006,4591.6,4591.5,0.1088]
[1756291922364,2.17793749,4591.5,4591.4,1.69]
[1756291922669,7.41741,4591.5,4591.4,1.69]
[1756291922867,7.71761,4591.5,4591.4,1.69]
[1756291923165,9.89554749,4591.5,4591.4,1.69]
[1756291923471,2.17805424,4591.3,4591.2,3.685]
[1756291923835,3.03275424,4591.3,4591.2,3.685]
[1756291924455,10.00406424,4591.3,4591.0,0.001]
[1756291924639,2.17809266,4591.2,4591.1,3.685]
[1756291924955,2.62379266,4591.2,4591.1,3.685]
[1756291925161,2.92399266,4591.2,4591.1,3.685]
[1756291926167,2.17812724,4591.1,4591.0,0.001]
[1756291926651,2.92402724,4591.1,4591.0,0.001]
[1756291926842,9.89533724,4591.1,4591.0,0.001]
[1756291927463,12.89533724,4591.1,4591.0,0.001]
[1756291930431,16.58133724,4591.1,4591.0,0.001]
[1756291931058,12.44963724,4591.1,4591.0,0.001]
[1756291931558,6.97131,4591.1,4591.0,0.2943]
[1756291931776,6.97131,4591.1,4591.0,2.90947468]
[1756291932065,6.97131,4591.1,4591.0,0.7313]
[1756291932254,6.97131,4591.1,4591.0,3.686]
[1756291932630,6.97131,4591.1,4591.0,6.15747468]
[1756291932865,6.97131,4591.1,4591.0,6.59447468]
[1756291933161,6.97131,4591.1,4591.0,6.70327468]
[1756291933358,6.97131,4591.1,4591.0,7.59352744]
[1756291933533,6.97131,4591.1,4591.0,8.37827468]
[1756291935670,6.97131,4591.1,4591.0,6.2001]
[1756291936162,6.97131,4591.1,4591.0,8.37827468]
[1756291936886,6.97131,4591.1,4591.0,5.7631]
[1756291937966,6.97131,4591.1,4591.0,7.94127468]
[1756291938357,6.97131,4591.1,4591.0,4.69327468]
[1756291938665,6.97131,4591.1,4591.0,8.37827468]
[1756291938868,6.97131,4591.1,4591.0,6.2001]
[1756291939069,6.97131,4591.1,4591.0,8.37827468]
[1756291940449,7.26841,4591.1,4591.0,5.4698]
[1756291940646,7.26841,4591.1,4591.0,5.361]
[1756291941383,7.26841,4591.1,4591.0,1.676]
[1756291941540,7.26841,4591.1,4591.0,5.361]
[1756291941966,7.26841,4591.1,4591.0,1.676]
[1756291942268,6.97051,4591.1,4591.0,5.6692]
[1756291944646,6.97051,4591.1,4591.0,5.361]
[1756291946258,6.97051,4591.1,4591.0,5.6692]
[1756291946782,0.0012,4591.6,4591.5,2.17793749]
[1756291946982,0.0012,4591.6,4591.5,6.61863749]
[1756291947282,0.0012,4591.6,4591.5,9.61863749]
[1756291947583,0.02,4593.8,4592.0,2.17770034]
[1756291947756,0.02,4593.8,4592.0,10.55847734]
[1756291948077,0.02,4593.8,4592.0,11.29340034]
[1756291948685,0.02,4593.8,4593.5,2.17695394]
[1756291948859,0.02,4593.8,4593.6,3.684]
[1756291949055,0.02,4593.8,4593.6,5.86093199]
[1756291949252,0.02,4593.8,4593.7,2.48509444]
[1756291949773,0.02,4593.8,4593.7,2.93359444]
[1756291950081,0.02,4593.8,4593.7,3.81305036]
[1756291950657,0.02,4593.8,4593.7,7.49705036]
[1756291951791,0.02,4593.8,4593.7,7.49605036]
[1756291952171,0.02,4593.8,4593.7,3.81305036]
[1756291952378,0.02,4593.8,4593.7,7.49605036]
[1756291956190,0.02,4593.8,4593.7,10.49605036]
[1756291956814,0.02,4593.8,4593.7,10.60485036]
[1756291957691,1e-08,4593.8,4593.7,11.26485036]
[1756291957896,0.00200001,4593.8,4593.7,11.26385036]
[1756291958113,1e-08,4593.8,4593.7,11.26385036]
[1756291959118,1e-08,4593.8,4593.7,7.58185036]
[1756291959299,1e-08,4593.8,4593.7,11.26285036]
[1756291959679,1e-08,4593.8,4593.7,11.24129436]
[1756291960708,1e-08,4593.8,4593.7,7.56029436]
[1756291961016,1e-08,4593.8,4593.7,11.24129436]
[1756291961955,1e-08,4594.3,4594.2,2.17665752]
[1756291962094,1e-08,4594.3,4594.2,11.62699592]
[1756291962289,1e-08,4594.8,4594.7,2.17642065]
[1756291962490,1e-08,4594.8,4594.7,5.85742065]
[1756291962787,1e-08,4594.8,4594.7,9.61412065]
[1756291962992,1e-08,4594.8,4594.7,10.79318162]
[1756291963589,1e-08,4594.8,4594.7,10.88040362]
[1756291964186,1e-08,4594.8,4594.7,7.19940362]
[1756291964423,1e-08,4594.8,4594.7,10.87940362]
[1756291966835,0.01920001,4595.8,4595.7,2.17594708]
[1756291967134,0.01920001,4595.8,4595.7,7.52994708]
[1756291967315,0.29480001,4595.8,4595.7,8.28294179]
[1756291967522,0.29480001,4595.8,4595.7,8.75494179]
[1756291968528,0.29480001,4595.8,4595.7,8.91526155]
[1756291969725,0.29480001,4595.8,4595.7,9.02406155]
[1756291971225,0.29480001,4595.8,4595.7,9.02306155]
[1756291972208,0.01920001,4595.8,4595.7,9.32436155]
[1756291972412,0.01920001,4595.8,4595.7,9.02306155]
[1756291973733,0.01920001,4595.8,4595.7,5.34406155]
[1756291973897,0.01920001,4595.8,4595.7,9.02306155]
[1756291974324,0.01920001,4595.8,4595.7,5.34406155]
[1756291974534,0.29270001,4595.8,4595.7,8.27006684]
[1756291974706,0.29270001,4595.8,4595.7,4.59106684]
[1756291975307,0.29270001,4595.8,4595.7,8.27006684]
[1756291975840,0.29470001,4595.8,4595.7,8.27006684]
[1756291976209,0.29470001,4595.8,4595.7,4.59106684]
[1756291976409,0.29470001,4595.8,4595.7,8.26906684]
[1756291976612,0.29470001,4595.8,4595.7,4.59106684]
[1756291976852,0.29470001,4595.8,4595.7,8.26906684]
[1756291977146,0.29470001,4595.8,4595.7,2.2548]
[1756291977340,0.76690001,4595.8,4595.7,7.63674708]
[1756291978038,0.29470001,4595.8,4595.7,7.63674708]
[1756291983664,0.76690001,4595.8,4595.7,1.7828]
[1756291983815,0.29470001,4595.8,4595.7,7.52794708]
[1756291984642,0.29470001,4595.8,4595.7,1.674]
[1756291984845,0.29470001,4595.8,4595.7,5.352]
[1756291985145,0.29470001,4595.8,4595.7,7.52794708]
[1756291985521,0.76690001,4595.8,4595.7,7.52794708]
[1756291986218,0.29470001,4595.8,4595.7,7.52794708]
[1756291986619,0.29470001,4595.8,4595.7,3.84994708]
[1756291986845,0.29470001,4595.8,4595.7,7.52794708]
[1756291987328,7.26521001,4595.8,4595.7,5.352]
[1756291987652,7.73741001,4595.8,4595.7,7.52794708]
[1756291988260,7.26521001,4595.8,4595.7,7.52694708]
[1756291990539,7.26521001,4595.8,4595.7,1.674]
[1756291990719,7.73741001,4595.8,4595.7,5.351]
[1756291990920,7.73741001,4595.8,4595.7,7.52694708]
[1756291991221,7.73661001,4595.8,4595.7,7.52694708]
[1756291992246,6.99091001,4595.8,4595.7,7.82824708]
[1756291992747,6.99091001,4595.8,4595.7,7.52694708]
[1756291993418,7.73661001,4595.8,4595.7,5.351]
[1756291993615,7.73661001,4595.8,4595.7,7.52694708]
[1756291994020,7.73661001,4595.8,4595.7,1.674]
[1756291994215,7.73661001,4595.8,4595.7,5.351]
[1756291994422,7.73661001,4595.8,4595.7,1.674]
[1756291994635,7.73661001,4595.8,4595.7,5.351]
[1756291994863,7.73661001,4595.8,4595.7,1.674]
[1756291995070,7.73661001,4595.8,4595.7,5.351]
[1756291996422,7.73661001,4595.8,4595.7,1.674]
[1756291996622,7.73661001,4595.8,4595.7,5.351]